fUSD/lending_fUSD_20250209
["ID","MTS","AMOUNT","RATE_DAILY","PERIOD"]
[352439710,1739109034929,-500.0,0.00010619,2]
[352439711,1739109034940,-611.91,0.00010619,2]
[352439712,1739109034950,-500.0,0.00010619,2]
[352439713,1739109034960,-953.61,0.00010619,2]
[352439714,1739109034970,-506.69166859,0.00010619,2]
[352439715,1739109034980,-503.60468531,0.00010619,2]
[352439716,1739109034990,-500.0,0.00010619,2]
[352439717,1739109035000,-500.0,0.00010619,2]
[352439718,1739109035011,-500.0,0.00010619,2]
[352439719,1739109035021,-671.56,0.00010619,2]
[352439720,1739109035032,-500.0,0.00010619,2]
[352439721,1739109035045,-500.0,0.00010619,2]
[352439722,1739109035055,-500.0,0.00010619,2]
[352439723,1739109035065,-889.68,0.00010619,2]
[352439724,1739109035075,-654.35,0.00010619,2]
[352439725,1739109035086,-686.38,0.00010619,2]
[352439726,1739109035096,-573.67,0.00010619,2]
[352439727,1739109035106,-500.0,0.00010619,2]
[352439728,1739109035116,-500.0,0.00010619,2]
[352439729,1739109035127,-500.0,0.00010619,2]
[352439730,1739109035137,-500.0,0.00010619,2]
[352439731,1739109035147,-500.0,0.00010619,2]
[352439732,1739109035157,-514.71,0.00010619,2]
[352439733,1739109035168,-500.0,0.00010619,2]
[352439734,1739109035178,-500.0,0.00010619,2]
[352439735,1739109035189,-500.0,0.00010619,2]
[352439736,1739109035200,-500.0,0.00010619,2]
[352439737,1739109035210,-500.0,0.00010619,2]
[352439738,1739109035220,-500.0,0.00010619,2]
[352439739,1739109035231,-875.51,0.00010619,2]
[352439740,1739109035241,-500.0,0.00010619,2]
[352439741,1739109035252,-768.88,0.00010619,2]
[352439742,1739109035262,-500.0,0.00010619,2]
[352439743,1739109035272,-500.0,0.00010619,2]
[352439744,1739109035283,-500.0,0.00010619,2]
[352439745,1739109035504,-539.99,0.00010619,2]
[352439746,1739109035515,-556.79,0.00010619,2]
[352439747,1739109035525,-500.0,0.00010619,2]
[352439748,1739109035536,-518.59009167,0.00010619,2]
[352439749,1739109035548,-500.0,0.00010619,2]
[352439750,1739109035558,-500.0,0.00010619,2]
[352439751,1739109035568,-500.0,0.00010619,2]
[352439752,1739109035579,-500.0,0.00010619,2]
[352439753,1739109035589,-500.0,0.00010619,2]
[352439754,1739109035599,-500.0,0.00010619,2]
[352439755,1739109035609,-500.0,0.00010619,2]
[352439756,1739109035619,-500.0,0.00010619,2]
[352439757,1739109035629,-500.0,0.00010619,2]
[352439758,1739109035639,-500.0,0.00010619,2]
[352439759,1739109035651,-500.0,0.00010619,2]
[352439760,1739109035662,-574.76,0.00010619,2]
[352439761,1739109035672,-500.0,0.00010619,2]
[352439762,1739109035683,-615.74,0.00010619,2]
[352439763,1739109035693,-548.68,0.00010619,2]
[352439764,1739109035703,-500.0,0.00010619,2]
[352439765,1739109035713,-539.5499241,0.00010619,2]
[352439766,1739109035723,-544.81,0.00010619,2]
[352439767,1739109035735,-500.0,0.00010619,2]
[352439768,1739109035746,-500.0,0.00010619,2]
[352439769,1739109035755,-591.9707838,0.00010619,2]
[352439770,1739109035766,-500.0,0.00010619,2]
[352439771,1739109035776,-500.0,0.00010619,2]
[352439772,1739109035786,-666.34,0.00010619,2]
[352439773,1739109035796,-860.66,0.00010619,2]
[352439774,1739109035807,-500.0,0.00010619,2]
[352439775,1739109035817,-500.0,0.00010619,2]
[352439776,1739109035828,-500.0,0.00010619,2]
[352439777,1739109035838,-500.0,0.00010619,2]
[352439778,1739109035848,-664.75,0.00010619,2]
[352439779,1739109035860,-797.56,0.00010619,2]
[352439780,1739109035870,-382.47650455,0.00010619,2]
[352439781,1739109035881,-500.0,0.00010619,2]
[352439782,1739109035890,-500.0,0.00010619,2]
[352439783,1739109035901,-500.0,0.00010619,2]
[352439784,1739109035911,-500.58157741,0.00010619,2]
[352439785,1739109035922,-487.90836009,0.00010619,2]
[352439786,1739109035932,-1338.87,0.00010619,2]
[352439787,1739109035942,-500.0,0.00010619,2]
[352439788,1739109035952,-500.0,0.00010619,2]
[352439789,1739109035962,-622.31,0.00010619,2]
[352439790,1739109035972,-500.0,0.00010619,2]
[352439791,1739109035982,-500.0,0.00010619,2]
[352439792,1739109035992,-500.0,0.00010619,2]
[352439793,1739109036002,-257.53422988,0.00010619,2]
[352439794,1739109036012,-500.0,0.00010619,2]
[352439795,1739109036022,-526.01,0.00010619,2]
[352439796,1739109036032,-500.0,0.00010619,2]
[352439797,1739109036043,-500.0,0.00010619,2]
[352439798,1739109036053,-501.83587746,0.00010619,2]
[352439799,1739109036063,-500.0,0.00010619,2]
[352439800,1739109036072,-757.91,0.00010619,2]
[352439801,1739109036082,-500.0,0.00010619,2]
[352439802,1739109036092,-542.67504028,0.00010619,2]
[352439803,1739109036101,-500.0,0.00010619,2]
[352439804,1739109036111,-500.0,0.00010619,2]
[352439805,1739109036122,-500.0,0.00010619,2]
[352439806,1739109036132,-500.0,0.00010619,2]
[352439807,1739109036142,-500.0,0.00010619,2]
[352439808,1739109036152,-500.0,0.00010619,2]
[352439809,1739109036163,-627.7,0.00010619,2]
[352439810,1739109036173,-500.0,0.00010619,2]
[352439811,1739109036183,-504.46899383,0.00010619,2]
[352439812,1739109036195,-500.0,0.00010619,2]
[352439813,1739109036206,-500.0,0.00010619,2]
[352439814,1739109036215,-500.0,0.00010619,2]
[352439815,1739109036226,-500.0,0.00010619,2]
[352439816,1739109036237,-500.0,0.00010619,2]
[352439817,1739109036247,-509.622286,0.00010619,2]
[352439818,1739109036257,-753.72,0.00010619,2]
[352439819,1739109036268,-500.0,0.00010619,2]
[352439820,1739109036278,-1000.0,0.00010619,2]
[352439821,1739109036289,-507.33786608,0.00010619,2]
[352439822,1739109036300,-500.0,0.00010619,2]
[352439823,1739109036310,-502.20475898,0.00010619,2]
[352439824,1739109036320,-668.28,0.00010619,2]
[352439825,1739109036330,-500.0,0.00010619,2]
[352439826,1739109036340,-593.94,0.00010619,2]
[352439827,1739109036350,-500.0,0.00010619,2]
[352439828,1739109036360,-500.0,0.00010619,2]
[352439829,1739109036370,-761.86,0.00010619,2]
[352439830,1739109036380,-500.0,0.00010619,2]
[352439831,1739109036391,-535.91,0.00010619,2]
[352439832,1739109036400,-500.0,0.00010619,2]
[352439833,1739109036410,-500.0,0.00010619,2]
[352439834,1739109036420,-500.0,0.00010619,2]
[352439835,1739109036430,-500.0,0.00010619,2]
[352439836,1739109036440,-872.69,0.00010619,2]
[352439837,1739109036451,-539.56375233,0.00010619,2]
[352439838,1739109036462,-500.0,0.00010619,2]
[352439839,1739109036472,-500.0,0.00010619,2]
[352439840,1739109036482,-500.45303942,0.00010619,2]
[352439841,1739109036493,-500.09,0.00010619,2]
[352439842,1739109036901,-677.39,0.00010619,2]
[352439843,1739109036919,-636.87,0.00010619,2]
[352439844,1739109036930,-500.0,0.00010619,2]
[352439845,1739109036939,-500.0,0.00010619,2]
[352439846,1739109036949,-532.60134948,0.00010619,2]
[352439847,1739109036958,-500.0,0.00010619,2]
[352439848,1739109036967,-500.0,0.00010619,2]
[352439849,1739109036977,-503.89288859,0.00010619,2]
[352439850,1739109036986,-500.0,0.00010619,2]
[352439851,1739109036996,-500.0,0.00010619,2]
[352439852,1739109037006,-500.0,0.00010619,2]
[352439853,1739109037015,-505.06677559,0.00010619,2]
[352439854,1739109037024,-500.0,0.00010619,2]
[352439855,1739109037034,-500.0,0.00010619,2]
[352439856,1739109037045,-688.48,0.00010619,2]
[352439857,1739109037055,-665.62,0.00010619,2]
[352439858,1739109037065,-500.0,0.00010619,2]
[352439859,1739109037075,-500.0,0.00010619,2]
[352439860,1739109037084,-500.0,0.00010619,2]
[352439861,1739109037094,-500.0,0.00010619,2]
[352439862,1739109037104,-503.50652354,0.00010619,2]
[352439863,1739109037114,-765.49,0.00010619,2]
[352439864,1739109037123,-459.09258752,0.00010619,2]
[352439865,1739109037133,-500.0,0.00010619,2]
[352439866,1739109037142,-500.0,0.00010619,2]
[352439867,1739109037152,-500.0,0.00010619,2]
[352439868,1739109037161,-505.49529127,0.00010619,2]
[352439869,1739109037170,-500.0,0.00010619,2]
[352439870,1739109037179,-500.0,0.00010619,2]
[352439871,1739109037189,-501.64057354,0.00010619,2]
[352439872,1739109037200,-500.0,0.00010619,2]
[352439873,1739109037209,-511.02,0.00010619,2]
[352439874,1739109037218,-500.0,0.00010619,2]
[352439875,1739109037227,-500.0,0.00010619,2]
[352439876,1739109037237,-500.0,0.00010619,2]
[352439877,1739109037246,-272.74098433,0.00010619,2]
[352439878,1739109037268,-228.59968369,0.00010619,2]
[352439879,1739109037277,-500.0,0.00010619,2]
[352439880,1739109037287,-500.0,0.00010619,2]
[352439881,1739109037297,-500.0,0.00010619,2]
[352439882,1739109037306,-500.0,0.00010619,2]
[352439883,1739109037316,-500.0,0.00010619,2]
[352439884,1739109037326,-847.21,0.00010619,2]
[352439885,1739109037335,-500.0,0.00010619,2]
[352439886,1739109037344,-502.07374561,0.00010619,2]
[352439887,1739109037354,-500.0,0.00010619,2]
[352439888,1739109037363,-382.53989813,0.00010619,2]
[352439889,1739109037373,-500.0,0.00010619,2]
[352439890,1739109037382,-604.55,0.00010619,2]
[352439891,1739109037392,-590.40523543,0.00010619,2]
[352439892,1739109037401,-636.48130207,0.00010619,2]
[352439893,1739109037411,-885.16,0.00010619,2]
[352439894,1739109037421,-697.65,0.00010619,2]
[352439895,1739109037430,-500.0,0.00010619,2]
[352439896,1739109037439,-500.0,0.00010619,2]
[352439897,1739109037449,-500.0,0.00010619,2]
[352439898,1739109037458,-999.63,0.00010619,2]
[352439899,1739109037468,-500.0,0.00010619,2]
[352439900,1739109037477,-500.0,0.00010619,2]
[352439901,1739109037486,-500.0,0.00010619,2]
[352439902,1739109037496,-500.0,0.00010619,2]
[352439903,1739109037505,-500.0,0.00010619,2]
[352439904,1739109037515,-416.89297717,0.00010619,2]
[352439905,1739109037525,-500.0,0.00010619,2]
[352439906,1739109037535,-500.0,0.00010619,2]
[352439907,1739109037546,-217.09738408,0.00010619,2]
[352439908,1739109037555,-500.0,0.00010619,2]
[352439909,1739109037565,-502.05330841,0.00010619,2]
[352439910,1739109037575,-500.0,0.00010619,2]
[352439911,1739109037584,-348.58441591,0.00010619,2]
[352439912,1739109037594,-500.0,0.00010619,2]
[352439913,1739109037604,-500.0,0.00010619,2]
[352439914,1739109037614,-497.03253678,0.00010619,2]
[352439915,1739109037623,-500.0,0.00010619,2]
[352439916,1739109037633,-500.0,0.00010619,2]
[352439917,1739109037643,-500.0,0.00010619,2]
[352439918,1739109037655,-500.0,0.00010619,2]
[352439919,1739109037664,-615.67871558,0.00010619,2]
[352439920,1739109037674,-281.69060875,0.00010619,2]
[352439921,1739109037683,-500.0,0.00010619,2]
[352439922,1739109037693,-500.0,0.00010619,2]
[352439924,1739109037703,-500.0,0.00010619,2]
[352439925,1739109037713,-500.0,0.00010619,2]
[352439926,1739109037724,-500.0,0.00010619,2]
[352439927,1739109037734,-500.0,0.00010619,2]
[352439928,1739109037744,-500.0,0.00010619,2]
[352439929,1739109037753,-186.82107889,0.00010619,2]
[352439930,1739109037763,-500.0,0.0001062,2]
[352439931,1739109037774,-500.0,0.0001062,2]
[352439932,1739109037783,-500.0,0.0001062,2]
[352439933,1739109037794,-500.0,0.0001062,2]
[352439934,1739109037804,-503.83892284,0.0001062,2]
[352439935,1739109037814,-500.0,0.0001062,2]
[352439937,1739109037823,-500.0,0.0001062,2]
[352439938,1739109037832,-158.58553513,0.0001062,2]
[352439939,1739109037842,-500.0,0.0001062,2]
[352439940,1739109037852,-500.0,0.0001062,2]
[352439941,1739109037862,-501.33352544,0.0001062,2]
[352439942,1739109037871,-504.59739726,0.0001062,2]
[352439943,1739109037880,-500.0,0.0001062,2]
[352439944,1739109037890,-503.25144014,0.0001062,2]
[352439945,1739109037899,-502.80840474,0.0001062,2]
[352439946,1739109037909,-500.0,0.0001062,2]
[352439947,1739109037918,-501.54637186,0.0001062,2]
[352439948,1739109037927,-503.43816454,0.0001062,2]
[352439950,1739109037937,-504.37496418,0.0001062,2]
[352439951,1739109037946,-500.0,0.0001062,2]
[352439952,1739109037956,-500.0,0.0001062,2]
[352439953,1739109037966,-500.0,0.0001062,2]
[352439954,1739109037975,-500.0,0.0001062,2]
[352439955,1739109037985,-502.73098642,0.0001062,2]
[352439956,1739109037994,-500.0,0.0001062,2]
[352439957,1739109038004,-500.0,0.0001062,2]
[352439958,1739109038014,-502.494849,0.0001062,2]
[352439959,1739109038023,-500.0,0.0001062,2]
[352439960,1739109038032,-500.0,0.0001062,2]
[352439961,1739109038043,-500.0,0.0001062,2]
[352439962,1739109038052,-500.73279199,0.0001062,2]
[352439963,1739109038061,-500.0,0.0001062,2]
[352439964,1739109038070,-503.60903029,0.0001062,2]
[352439965,1739109038079,-500.0,0.0001062,2]
[352439966,1739109038088,-500.0,0.0001062,2]
[352439967,1739109038098,-501.94939578,0.0001062,2]
[352439968,1739109038106,-501.76130683,0.0001062,2]
[352439969,1739109038115,-500.0,0.0001062,2]
[352439970,1739109038124,-500.0,0.0001062,2]
[352439971,1739109038133,-512.85781277,0.0001062,2]
[352439972,1739109038142,-503.56559714,0.0001062,2]
[352439973,1739109038151,-507.70320438,0.0001062,2]
[352439974,1739109038160,-505.20823287,0.0001062,2]
[352439975,1739109038168,-500.44701659,0.0001062,2]
[352439976,1739109038178,-500.0,0.0001062,2]
[352439977,1739109038187,-500.0,0.0001062,2]
[352439978,1739109038196,-500.0,0.0001062,2]
[352439979,1739109038205,-500.0,0.0001062,2]
[352439980,1739109038214,-500.0,0.0001062,2]
[352439981,1739109038222,-500.0,0.0001062,2]
[352439982,1739109038231,-172.39,0.0001062,2]
[352439983,1739109038241,-500.26168546,0.0001062,2]
[352439984,1739109038250,-500.0,0.0001062,2]
[352439985,1739109038259,-500.0,0.0001062,2]
[352439986,1739109038269,-500.0,0.0001062,2]
[352439987,1739109038278,-500.0,0.0001062,2]
[352439988,1739109038287,-500.0,0.0001062,2]
[352439989,1739109038299,-507.18826553,0.0001062,2]
[352439990,1739109038308,-503.02623197,0.0001062,2]
[352439991,1739109038318,-507.57962735,0.0001062,2]
[352439992,1739109038327,-502.7187944,0.0001062,2]
[352439993,1739109038336,-500.0,0.0001062,2]
[352439994,1739109038346,-500.0,0.0001062,2]
[352439995,1739109038355,-503.8798412,0.0001062,2]
[352439996,1739109038364,-500.0,0.0001062,2]
[352439997,1739109038374,-500.0,0.0001062,2]
[352439998,1739109038383,-500.0,0.0001062,2]
[352439999,1739109038393,-500.0,0.0001062,2]
[352440000,1739109038403,-501.03724517,0.0001062,2]
[352440001,1739109038413,-500.0,0.0001062,2]
[352440002,1739109038422,-505.70034849,0.0001062,2]
[352440003,1739109038431,-507.39225326,0.0001062,2]
[352440004,1739109038442,-500.0,0.0001062,2]
[352440005,1739109038451,-500.0,0.0001062,2]
[352440006,1739109038460,-501.24127861,0.0001062,2]
[352440007,1739109038470,-500.0,0.0001062,2]
[352440008,1739109038480,-500.0,0.0001062,2]
[352440009,1739109038490,-501.57041341,0.0001062,2]
[352440010,1739109038499,-500.0,0.0001062,2]
[352440011,1739109038508,-500.0,0.0001062,2]
[352440012,1739109038518,-500.0,0.0001062,2]
[352440013,1739109038527,-505.55278684,0.0001062,2]
[352440014,1739109038536,-500.0,0.0001062,2]
[352440015,1739109038549,-500.0,0.0001062,2]
[352440016,1739109038558,-500.0,0.0001062,2]
[352440017,1739109038568,-507.67093929,0.0001062,2]
[352440018,1739109038579,-500.0,0.0001062,2]
[352440019,1739109038589,-517.95501135,0.0001062,2]
[352440020,1739109038599,-502.93411545,0.0001062,2]
[352440021,1739109038609,-500.0,0.0001062,2]
[352440022,1739109038619,-500.0,0.0001062,2]
[352440024,1739109038630,-500.0,0.0001062,2]
[352440025,1739109038640,-500.0,0.0001062,2]
[352440027,1739109038654,-508.60816115,0.0001062,2]
[352440029,1739109038664,-503.04345216,0.0001062,2]
[352440030,1739109038674,-500.0,0.0001062,2]
[352440031,1739109038686,-500.0,0.0001062,2]
[352440032,1739109038695,-503.53403705,0.0001062,2]
[352440033,1739109038706,-500.0,0.0001062,2]
[352440034,1739109038716,-504.88472438,0.0001062,2]
[352440035,1739109038727,-500.0,0.0001062,2]
[352440036,1739109038738,-503.50465483,0.0001062,2]
[352440037,1739109038748,-500.0,0.0001062,2]
[352440038,1739109038759,-500.0,0.0001062,2]
[352440039,1739109038769,-500.0,0.0001062,2]
[352440040,1739109038780,-503.8761906,0.0001062,2]
[352440041,1739109038790,-500.0,0.0001062,2]
[352440042,1739109038804,-507.90261647,0.0001062,2]
[352440043,1739109038814,-514.05963507,0.0001062,2]
[352440044,1739109038825,-480.03733912,0.0001062,2]
[352440045,1739109038835,-500.0,0.0001062,2]
[352440046,1739109038844,-500.0,0.0001062,2]
[352440047,1739109038854,-216.93154201,0.0001062,2]
[352440048,1739109038864,-507.66376154,0.0001062,2]
[352440049,1739109038877,-500.0,0.0001062,2]
[352440050,1739109038887,-500.0,0.0001062,2]
[352440051,1739109038896,-507.12631912,0.0001062,2]
[352440052,1739109038906,-500.0,0.0001062,2]
[352440053,1739109038915,-500.0,0.0001062,2]
[352440054,1739109038926,-500.0,0.0001062,2]
[352440056,1739109038935,-500.0,0.0001062,2]
[352440057,1739109038944,-500.0,0.0001062,2]
[352440058,1739109038954,-508.15868327,0.0001062,2]
[352440059,1739109038963,-509.43764512,0.0001062,2]
[352440060,1739109038973,-500.0,0.0001062,2]
[352440061,1739109038983,-503.65433926,0.0001062,2]
[352440062,1739109038992,-500.0,0.0001062,2]
[352440064,1739109039002,-500.0,0.0001062,2]
[352440066,1739109039011,-500.0,0.0001062,2]
[352440067,1739109039021,-500.0,0.0001062,2]
[352440068,1739109039031,-500.0,0.0001062,2]
[352440069,1739109039043,-500.0,0.0001062,2]
[352440070,1739109039052,-500.0,0.0001062,2]
[352440071,1739109039062,-500.0,0.0001062,2]
[352440072,1739109039072,-504.38815824,0.0001062,2]
[352440073,1739109039081,-500.0,0.0001062,2]
[352440074,1739109039091,-500.0,0.0001062,2]
[352440075,1739109039100,-523.67620465,0.0001062,2]
[352440076,1739109039109,-500.0,0.0001062,2]
[352440077,1739109039119,-500.0,0.0001062,2]
[352440078,1739109039129,-490.31092175,0.0001062,2]
[352440079,1739109039139,-504.62944683,0.0001062,2]
[352440080,1739109039148,-500.0,0.0001062,2]
[352440081,1739109039158,-503.50575909,0.0001062,2]
[352440082,1739109039168,-500.0,0.0001062,2]
[352440083,1739109039178,-500.0,0.0001062,2]
[352440084,1739109039187,-500.0,0.0001062,2]
[352440085,1739109039197,-500.0,0.0001062,2]
[352440086,1739109039207,-506.37548925,0.0001062,2]
[352440087,1739109039217,-500.0,0.0001062,2]
[352440088,1739109039227,-500.0,0.0001062,2]
[352440089,1739109039237,-500.0,0.0001062,2]
[352440090,1739109039246,-500.0,0.0001062,2]
[352440091,1739109039255,-503.45223384,0.0001062,2]
[352440092,1739109039265,-500.0,0.0001062,2]
[352440093,1739109039274,-504.69011192,0.0001062,2]
[352440094,1739109039284,-500.0,0.0001062,2]
[352440095,1739109039296,-500.0,0.0001062,2]
[352440096,1739109039305,-501.07216961,0.0001062,2]
[352440097,1739109039315,-507.19609447,0.0001062,2]
[352440098,1739109039324,-509.15875029,0.0001062,2]
[352440099,1739109039334,-500.0,0.0001062,2]
[352440100,1739109039343,-502.04997743,0.0001062,2]
[352440101,1739109039352,-505.0800314,0.0001062,2]
[352440102,1739109039362,-500.0,0.0001062,2]
[352440103,1739109039371,-500.0,0.0001062,2]
[352440104,1739109039381,-500.0,0.0001062,2]
[352440105,1739109039391,-500.0,0.0001062,2]
[352440106,1739109039400,-500.0,0.0001062,2]
[352440107,1739109039410,-500.0,0.0001062,2]
[352440108,1739109039420,-502.31690516,0.0001062,2]
[352440109,1739109039429,-500.0,0.0001062,2]
[352440110,1739109039439,-503.86229,0.0001062,2]
[352440111,1739109039448,-500.0,0.0001062,2]
[352440112,1739109039458,-500.0,0.0001062,2]
[352440113,1739109039468,-500.0,0.0001062,2]
[352440114,1739109039477,-500.0,0.0001062,2]
[352440115,1739109039487,-500.0,0.0001062,2]
[352440116,1739109039497,-500.0,0.0001062,2]
[352440117,1739109039506,-254.59706922,0.0001062,2]
[352440118,1739109039516,-500.0,0.0001062,2]
[352440119,1739109039526,-500.32883713,0.0001062,2]
[352440120,1739109039535,-504.69943792,0.0001062,2]
[352440121,1739109039547,-504.69128952,0.0001062,2]
[352440122,1739109039556,-500.0,0.0001062,2]
[352440123,1739109039566,-500.0,0.0001062,2]
[352440124,1739109039575,-503.53539539,0.0001062,2]
[352440125,1739109039585,-500.0,0.0001062,2]
[352440126,1739109039594,-553.78426559,0.0001062,2]
[352440127,1739109039604,-500.83732347,0.0001062,2]
[352440128,1739109039614,-603.04168732,0.0001062,2]
[352440129,1739109039624,-500.0,0.0001062,2]
[352440130,1739109039633,-504.58753181,0.0001062,2]
[352440131,1739109039643,-500.0,0.0001062,2]
[352440132,1739109039654,-500.0,0.0001062,2]
[352440133,1739109039664,-500.0,0.0001062,2]
[352440134,1739109039673,-187.77781684,0.0001062,2]
[352440135,1739109039683,-500.0,0.0001062,2]
[352440136,1739109039693,-500.0,0.0001062,2]
[352440137,1739109039703,-500.0,0.0001062,2]
[352440138,1739109039713,-500.0,0.0001062,2]
[352440139,1739109039723,-500.0,0.0001062,2]
[352440140,1739109039733,-500.0,0.0001062,2]
[352440141,1739109039743,-500.0,0.0001062,2]
[352440142,1739109039753,-500.0,0.0001062,2]
[352440143,1739109039763,-424.15446484,0.0001062,2]
[352440144,1739109039772,-500.0,0.0001062,2]
[352440145,1739109039782,-500.0,0.0001062,2]
[352440146,1739109039792,-500.0,0.0001062,2]
[352440148,1739109039802,-500.0,0.0001062,2]
[352440150,1739109039812,-500.0,0.0001062,2]
[352440152,1739109039822,-500.0,0.0001062,2]
[352440153,1739109039831,-500.0,0.0001062,2]
[352440154,1739109039840,-500.0,0.0001062,2]
[352440155,1739109039852,-500.0,0.0001062,2]
[352440156,1739109039862,-500.0,0.0001062,2]
[352440157,1739109039873,-500.0,0.0001062,2]
[352440162,1739109040047,-540.2,0.0001062,2]
[352440163,1739109040057,-500.0,0.0001062,2]
[352440164,1739109040067,-500.0,0.0001062,2]
[352440165,1739109040076,-500.0,0.0001062,2]
[352440166,1739109040086,-500.0,0.0001062,2]
[352440167,1739109040095,-500.0,0.0001062,2]
[352440168,1739109040105,-500.0,0.0001062,2]
[352440169,1739109040114,-500.0,0.0001062,2]
[352440170,1739109040124,-500.0,0.0001062,2]
[352440171,1739109040134,-500.0,0.0001062,2]
[352440172,1739109040144,-528.52,0.0001062,2]
[352440173,1739109040153,-500.0,0.0001062,2]
[352440174,1739109040162,-573.44,0.0001062,2]
[352440175,1739109040172,-500.0,0.0001062,2]
[352440176,1739109040181,-513.14946341,0.0001062,2]
[352440177,1739109040191,-500.0,0.0001062,2]
[352440178,1739109040200,-500.0,0.0001062,2]
[352440179,1739109040210,-500.0,0.0001062,2]
[352440180,1739109040219,-500.0,0.0001062,2]
[352440181,1739109040229,-707.95,0.0001062,2]
[352440182,1739109040238,-500.0,0.0001062,2]
[352440183,1739109040248,-504.36060809,0.0001062,2]
[352440184,1739109040258,-500.0,0.0001062,2]
[352440185,1739109040267,-500.0,0.0001062,2]
[352440186,1739109040276,-504.91905147,0.0001062,2]
[352440187,1739109040286,-500.0,0.0001062,2]
[352440188,1739109040297,-500.0,0.0001062,2]
[352440189,1739109040307,-500.0,0.0001062,2]
[352440190,1739109040316,-500.0,0.0001062,2]
[352440191,1739109040325,-504.93,0.0001062,2]
[352440192,1739109040335,-548.78,0.0001062,2]
[352440193,1739109040345,-500.0,0.0001062,2]
[352440194,1739109040354,-500.0,0.0001062,2]
[352440195,1739109040364,-600.76584197,0.0001062,2]
[352440196,1739109040374,-500.0,0.0001062,2]
[352440197,1739109040383,-506.61945016,0.0001062,2]
[352440198,1739109040393,-500.0,0.0001062,2]
[352440199,1739109040403,-500.0,0.0001062,2]
[352440200,1739109040412,-500.0,0.0001062,2]
[352440201,1739109040422,-500.0,0.0001062,2]
[352440202,1739109040432,-500.0,0.0001062,2]
[352440203,1739109040441,-500.0,0.0001062,2]
[352440204,1739109040451,-500.0,0.0001062,2]
[352440205,1739109040460,-500.0,0.0001062,2]
[352440206,1739109040469,-500.0,0.0001062,2]
[352440207,1739109040478,-500.0,0.0001062,2]
[352440208,1739109040487,-500.0,0.0001062,2]
[352440209,1739109040497,-500.0,0.0001062,2]
[352440210,1739109040506,-500.0,0.0001062,2]
[352440211,1739109040515,-500.0,0.0001062,2]
[352440212,1739109040524,-500.0,0.0001062,2]
[352440213,1739109040535,-500.0,0.0001062,2]
[352440214,1739109040544,-500.0,0.0001062,2]
[352440215,1739109040553,-500.0,0.0001062,2]
[352440216,1739109040562,-500.0,0.0001062,2]
[352440217,1739109040572,-500.0,0.0001062,2]
[352440218,1739109040582,-500.0,0.0001062,2]
[352440219,1739109040592,-503.0496763,0.0001062,2]
[352440220,1739109040602,-500.0,0.0001062,2]
[352440221,1739109040612,-500.0,0.0001062,2]
[352440222,1739109040622,-500.0,0.0001062,2]
[352440223,1739109040631,-242.44,0.0001062,2]
[352440225,1739109040641,-500.0,0.0001062,2]
[352440226,1739109040654,-500.0,0.0001062,2]